bitfinex/quotes_SOLUSD_20260306
["timestamp","ask_amount","ask_price","bid_price","bid_amount"]
[1772761154277,0.39885826,89.147,89.086,1.0896054]
[1772761155187,0.3987246,89.139,89.086,1.0896054]
[1772761156491,0.39859964,89.137,89.087,11.22498232]
[1772761156678,0.39859964,89.136,89.087,11.22498232]
[1772761158509,0.39834696,89.128,89.078,11.22611643]
[1772761158680,0.39834696,89.125,89.078,11.22611643]
[1772761158993,0.39834696,89.125,89.079,1.0896054]
[1772761161370,11.22032224,89.124,89.081,1.0896054]
[1772761161574,0.39796537,89.123,89.08,11.22586439]
[1772761162176,0.39796537,89.123,89.08,12.31546979]
[1772761162396,0.39796537,89.123,89.08,11.22586439]
[1772761162606,0.39796537,89.123,89.081,1.0896054]
[1772761163106,0.39771845,89.134,89.081,1.0896054]
[1772761163279,11.2191893,89.133,89.081,1.0896054]
[1772761163597,0.39771845,89.132,89.083,1.0896054]
[1772761165377,11.21843413,89.139,89.083,1.0896054]
[1772761165578,0.39748029,89.139,89.085,1.0896054]
[1772761165796,0.39748029,89.129,89.085,1.0896054]
[1772761167293,11.21981868,89.128,89.086,11.22510832]
[1772761167496,0.39726139,89.127,89.087,1.0896054]
[1772761167687,0.39726139,89.126,89.087,1.0896054]
[1772761169208,0.39726139,89.126,89.078,11.22611643]
[1772761169399,0.28432314,89.127,89.079,1.01188672]
[1772761169400,0.39690024,89.124,89.079,1.01188672]
[1772761171801,11.22044814,89.123,89.081,1.02426043]
[1772761171987,0.39643797,89.122,89.081,1.02426043]
[1772761172503,11.22044814,89.123,89.081,1.02426043]
[1772761173610,0.39633462,89.122,89.081,1.02426043]
[1772761174083,0.39622394,89.12,89.083,1.02426043]
[1772761174789,0.39622394,89.119,89.071,1.02426043]
[1772761175703,0.39611384,89.137,89.071,1.02426043]
[1772761176202,0.396001,89.134,89.073,1.02426043]
[1772761178114,0.396001,89.134,89.068,3.9866555]
[1772761178115,0.39578552,89.127,89.074,11.22662056]
[1772761178409,0.39578552,89.118,89.074,11.22662056]
[1772761178581,0.39578552,89.118,89.068,3.9866555]
[1772761178582,0.68010866,89.109,89.068,3.9866555]
[1772761178906,0.39578552,89.099,89.068,3.9866555]
[1772761179300,84.14864014,89.128,89.068,3.9866555]
[1772761179301,0.28432314,89.089,89.068,1e-08]
[1772761179792,0.28432314,89.097,89.068,1e-08]
[1772761180196,0.28432314,89.095,89.068,1e-08]
[1772761180897,11.50653414,89.109,89.069,1.10576423]
[1772761181511,0.28432314,89.122,89.069,1.10576423]
[1772761181813,0.14216157,89.122,89.069,1.10576423]
[1772761182226,28.0480186,89.133,89.07,39.29493656]
[1772761182511,28.0480186,89.133,89.071,1.10576423]
[1772761183007,11.21843413,89.139,89.071,1.10576423]
[1772761183217,0.28432314,89.138,89.071,1.10576423]
[1772761183393,39.26451945,89.139,89.071,1.10576423]
[1772761183814,0.14216157,89.138,89.071,1.10576423]
[1772761184015,0.28432314,89.129,89.071,1.10576423]
[1772761184695,0.28432314,89.127,89.073,1.10576423]
[1772761185299,11.39547657,89.12,89.073,1.10576423]
[1772761185502,0.28432314,89.109,89.068,1e-08]
[1772761186218,39.26936539,89.128,89.07,1.10576423]
[1772761186508,0.28432314,89.127,89.07,1.10576423]
[1772761186714,3.69383402,89.148,89.068,1e-08]
[1772761186715,0.14216157,89.109,89.068,1e-08]
[1772761186917,0.28432314,89.109,89.068,1e-08]
[1772761187321,0.28432314,89.109,89.068,1.10576424]
[1772761188407,28.05269418,89.118,89.07,1.10576423]
[1772761188604,0.28432314,89.116,89.07,1.10576423]
[1772761191016,11.21591763,89.159,89.075,1.10576423]
[1772761191314,0.28432314,89.149,89.075,1.10576423]
[1772761192305,11.39547657,89.15,89.075,1.10576423]
[1772761192515,0.14216157,89.149,89.075,1.10576423]
[1772761193017,0.28432314,89.147,89.077,1.10576423]
[1772761195013,0.28432314,89.129,89.077,1.10576423]
[1772761195312,11.21981868,89.128,89.079,1.10576423]
[1772761195514,0.28432314,89.141,89.079,1.10576423]
[1772761195697,0.28432314,89.142,89.079,1.10576423]
[1772761197116,0.28432314,89.139,89.079,1.10576423]
[1772761197297,0.28432314,89.137,89.081,1.10576423]
[1772761197704,0.28432314,89.119,89.075,11.22637898]
[1772761199410,0.28432314,89.109,89.068,11.22732866]
[1772761199609,0.28432314,89.109,89.068,1e-08]
[1772761199819,0.28432314,89.109,89.069,1.10576423]
[1772761200709,11.22107767,89.118,89.069,1.10576423]
[1772761200920,11.21981868,89.128,89.069,1.10576423]
[1772761201635,11.21981868,89.128,89.068,39.2957922]
[1772761201636,39.44144287,89.14,89.071,1.10576423]
[1772761202496,0.28432314,89.139,89.071,1.10576423]
[1772761203927,0.28432314,89.137,89.073,1.10576423]
[1772761204226,28.04154882,89.154,89.073,1.10576423]
[1772761204609,0.28432314,89.153,89.073,1.10576423]
[1772761205321,0.28432314,89.139,89.073,1.10576423]
[1772761205813,0.28432314,89.129,89.073,1.10576423]
[1772761206022,11.21981868,89.128,89.075,1.10576423]
[1772761208516,0.28432314,89.138,89.077,1.10576423]
[1772761210328,11.21591763,89.159,89.08,1.10576423]
[1772761210623,0.28432314,89.158,89.085,1.10576423]
[1772761210834,11.39547657,89.18,89.086,1.39008737]
[1772761211003,0.28432314,89.179,89.087,1.10576423]
[1772761211205,11.39547657,89.18,89.087,1.10576423]
[1772761211603,0.28432314,89.179,89.087,1.10576423]
[1772761211827,11.39547657,89.18,89.086,0.28432314]
[1772761211828,11.21579183,89.16,89.092,1.10576423]
[1772761212019,39.25527141,89.16,89.092,1.10576423]
[1772761212703,0.28432314,89.165,89.092,1.10576423]
[1772761212904,11.21579183,89.16,89.092,1.10576423]
[1772761214222,11.21579183,89.16,89.094,1.10576423]
[1772761215521,11.21579183,89.16,89.096,1.10576423]
[1772761215720,0.28432314,89.159,89.096,1.10576423]
[1772761216329,11.21579183,89.16,89.098,1.10576423]
[1772761218531,11.21579183,89.16,89.1,1.10576423]
[1772761219329,39.25527141,89.16,89.1,1.10576423]
[1772761220023,50.65074798,89.16,89.1,1.10576423]
[1772761220664,50.65074798,89.16,89.056,44.91514733]
[1772761220665,0.28432314,89.149,89.102,1.10576423]
[1772761220931,11.21579183,89.16,89.102,1.10576423]
[1772761222532,11.21579183,89.16,89.104,1.10576423]
[1772761222922,39.25527141,89.16,89.104,1.10576423]
[1772761223429,0.28432314,89.159,89.104,1.10576423]
[1772761223629,0.28432314,89.159,89.056,44.91548192]
[1772761223630,0.28432314,89.139,89.085,1.10576423]
[1772761223928,0.28432314,89.139,89.087,1.10576423]
[1772761224528,0.28432314,89.137,89.089,1.10576423]
[1772761224728,11.50187636,89.146,89.089,1.10576423]
[1772761226031,11.21755322,89.146,89.089,1.10576423]
[1772761226231,11.3584566,89.156,89.089,1.10576423]
[1772761226436,11.21629503,89.156,89.089,1.10576423]
[1772761226622,28.04058616,89.157,89.091,1.10576423]
[1772761226817,28.04058616,89.157,89.093,3.69383402]
[1772761227023,11.21579183,89.16,89.094,1.10576423]
[1772761227531,28.03260492,89.182,89.096,1.10576423]
[1772761227717,4.25359459,89.18,89.097,1.10576423]
[1772761227920,28.03570135,89.173,89.097,1.10576423]
[1772761228113,11.21515924,89.166,89.097,1.10576423]
[1772761228731,11.21515924,89.166,89.102,1.10576423]
[1772761229935,0.28432314,89.182,89.102,1.10576423]
[1772761230238,11.21375878,89.177,89.104,1.10576423]
[1772761230426,11.21375878,89.177,89.105,1.2479258]
[1772761230733,11.21375878,89.177,89.112,1.10576423]
[1772761231627,1e-08,89.161,89.113,1.10576423]
[1772761232534,1e-08,89.161,89.111,3.69383402]
[1772761232535,1e-08,89.161,89.115,1.10576423]
[1772761233436,1e-08,89.161,89.12,1.10576423]
[1772761234521,0.1,89.19,89.123,1.10576423]
[1772761234720,0.1,89.19,89.122,0.28432314]
[1772761234721,0.1,89.19,89.126,1.10576423]
[1772761234921,0.1,89.19,89.127,1.10576423]
[1772761236053,0.1,89.2,89.133,1.10576423]
[1772761236341,0.1,89.2,89.142,1.39008737]
[1772761236546,0.1,89.21,89.148,4.82477569]
[1772761236719,0.10876365,89.232,89.153,1.1979258]
[1772761236915,0.10876365,89.232,89.158,1.05576423]
[1772761237140,0.10876365,89.232,89.161,1.05576423]
[1772761237322,11.20633989,89.236,89.161,1.05576423]
[1772761237535,0.10893683,89.235,89.163,1.05576423]
[1772761238019,0.10893683,89.235,89.168,1.05576423]
[1772761238219,0.10893683,89.235,89.17,1.05576423]
[1772761238442,0.10893683,89.235,89.171,1.05576423]
[1772761238625,0.70800884,89.239,89.174,1.05576423]
[1772761238821,0.70800884,89.239,89.176,1.1979258]
[1772761239026,0.10928728,89.238,89.177,1.05576423]
[1772761239632,11.91387974,89.239,89.177,1.05576423]
[1772761240021,11.91387974,89.239,89.179,1.05576423]
[1772761240022,0.70800884,89.239,89.179,1.05576423]
[1772761240233,0.70800884,89.239,89.181,1.05576423]
[1772761240430,0.70800884,89.239,89.182,1.05576423]
[1772761240638,0.70800884,89.239,89.183,1.05576423]
[1772761240832,0.10944494,89.237,89.184,1.05576423]
[1772761241136,0.10961842,89.229,89.185,1.05576423]
[1772761241338,0.10961842,89.219,89.184,2.59866769]
[1772761241551,0.10961842,89.219,89.184,2.48904641]
[1772761242045,39.22931213,89.219,89.184,2.48904641]
[1772761242642,39.22931213,89.219,89.184,13.70174274]
[1772761243458,11.20837489,89.219,89.184,13.70174274]
[1772761243948,11.20837489,89.219,89.184,2.48904641]
[1772761244254,11.37634228,89.22,89.184,2.48904641]
[1772761244959,11.37634228,89.23,89.185,11.21264786]
[1772761245143,0.28432314,89.229,89.186,1.11057487]
[1772761245660,11.37634228,89.22,89.186,1.11057487]
[1772761245860,0.28432314,89.229,89.186,1.11057487]
[1772761246062,11.37634228,89.21,89.146,1.11057487]
[1772761246264,11.20850052,89.218,89.147,1.11057487]
[1772761246548,11.20850052,89.218,89.152,1.11057487]
[1772761246758,39.22975183,89.218,89.152,1.11057487]
[1772761247164,39.22975183,89.218,89.153,1.11057487]
[1772761247338,39.22975183,89.218,89.154,1.11057487]
[1772761247653,11.37634228,89.2,89.155,1.11057487]
[1772761247854,0.28432314,89.199,89.154,2.85817388]
[1772761248067,84.06375393,89.218,89.147,3.90452423]
[1772761248068,11.37634228,89.19,89.147,3.90452423]
[1772761248260,0.28432314,89.204,89.148,11.21730156]
[1772761248261,11.21214499,89.189,89.148,11.21730156]
[1772761248466,11.21214499,89.189,89.148,12.32787643]
[1772761248759,11.21214499,89.189,89.149,1.11057487]
[1772761248952,39.24250747,89.189,89.149,1.11057487]
[1772761249150,11.37634228,89.18,89.147,2.79394936]
[1772761249657,0.28432314,89.179,89.129,1.11057487]
[1772761249867,11.37634228,89.17,89.089,1.11057487]
[1772761250046,11.37634228,89.18,89.092,1.11057487]
[1772761250248,11.21340225,89.179,89.099,1.11057487]
[1772761250449,11.21340225,89.179,89.102,1.11057487]
[1772761251065,11.21273563,89.185,89.109,1.11057487]
[1772761251740,11.49521115,89.199,89.11,1.11057487]
[1772761251946,39.52243118,89.199,89.111,0.28432314]
[1772761252158,39.52243118,89.199,89.11,0.28432314]
[1772761252159,39.52243118,89.199,89.118,1.11057487]
[1772761252371,39.52243118,89.199,89.12,1.11057487]
[1772761252551,39.52243118,89.199,89.121,1.11057487]
[1772761252745,0.28432314,89.198,89.122,1.11057487]
[1772761253062,0.28432314,89.198,89.123,1.11057487]
[1772761253446,28.01603144,89.235,89.125,4.82477569]
[1772761253646,0.28432314,89.219,89.13,1.11057487]
[1772761253870,28.01603144,89.235,89.141,1.11057487]
[1772761254046,11.37634228,89.23,89.141,1.11057487]
[1772761254253,39.22491566,89.229,89.155,1.11057487]
[1772761254452,11.37634228,89.22,89.155,1.11057487]
[1772761254953,0.28432314,89.228,89.155,1.11057487]
[1772761255265,39.22491566,89.229,89.155,1.11057487]
[1772761255567,0.28432314,89.228,89.155,1.11057487]
[1772761255868,11.20711876,89.229,89.157,1.11057487]
[1772761256249,11.20598848,89.238,89.162,1.25273644]
[1772761256444,11.20598848,89.238,89.163,1.25273644]
[1772761257258,11.20598848,89.238,89.168,1.11057487]
[1772761257867,0.70800884,89.239,89.171,1.11057487]
[1772761258075,0.70800884,89.239,89.172,1.39489801]
[1772761258368,0.70800884,89.239,89.169,2.81082421]
[1772761258369,0.70800884,89.239,89.175,1.11057487]
[1772761258567,0.70800884,89.239,89.176,1.39489801]
[1772761258769,0.70800884,89.239,89.177,1.11057487]
[1772761259463,0.70800884,89.239,89.176,0.28432314]
[1772761259464,0.1,89.25,89.183,1.11057487]
[1772761259662,11.20460733,89.249,89.183,1.11057487]
[1772761260344,0.1,89.25,89.183,1.11057487]
[1772761260753,11.20460733,89.249,89.183,1.11057487]
[1772761261265,0.1,89.25,89.183,1.11057487]
[1772761261466,0.1,89.25,89.188,1.11057487]
[1772761262071,0.28432314,89.249,89.188,1.11057487]
[1772761262950,0.1,89.25,89.188,1.11057487]
[1772761263261,0.1,89.25,89.19,1.11057487]
[1772761263460,0.1,89.25,89.192,1.11057487]
[1772761265774,0.1,89.25,89.197,1.11057487]
[1772761267449,0.28432314,89.249,89.197,1.11057487]
[1772761267970,0.28432314,89.247,89.198,12.32158856]
[1772761268272,0.28432314,89.247,89.199,1.11057487]
[1772761268671,11.20473287,89.248,89.199,1.11057487]
[1772761269751,0.1,89.25,89.199,1.11057487]
[1772761269974,0.1061115,89.282,89.214,1.06057487]
[1772761270156,0.10636285,89.279,89.214,1.06057487]
[1772761270356,0.10636285,89.269,89.214,1.06057487]
[1772761270674,0.10636285,89.268,89.214,1.06057487]
[1772761271678,0.10661063,89.277,89.214,1.06057487]
[1772761271975,0.10661063,89.277,89.216,1.06057487]
[1772761274074,0.1073265,89.269,89.217,39.23019154]
[1772761274283,0.1073265,89.268,89.217,11.20862615]
[1772761274777,0.1073265,89.259,89.217,11.20862615]
[1772761274981,0.1073265,89.259,89.212,11.2091536]
[1772761274982,0.1073265,89.258,89.212,11.2091536]
[1772761275676,0.10757439,89.249,89.213,1.06057487]
[1772761276371,0.10781767,89.277,89.215,1.06057487]
[1772761277061,0.10805574,89.269,89.215,1.06057487]
[1772761277671,0.10805574,89.268,89.215,1.06057487]
[1772761278865,0.10827905,89.266,89.217,1.06057487]
[1772761279873,3.49,90.605,89.217,1.06057487]
[1772761279874,0.10850331,89.274,89.217,1.06057487]
[1772761280356,0.1087265,89.269,89.217,1.06057487]
[1772761281360,0.1089445,89.268,89.219,1.06057487]
[1772761281980,0.10916612,89.259,89.218,11.20850052]
[1772761282185,0.10916612,89.259,89.202,1.06057487]
[1772761282186,11.37634228,89.25,89.202,1.06057487]
[1772761282385,0.10916612,89.248,89.194,1.06057487]
[1772761282574,0.10916612,89.219,89.174,1.06057487]
[1772761282888,0.10916612,89.209,89.166,11.21503712]
[1772761283176,0.10916612,89.209,89.166,12.27561199]
[1772761283368,0.10916612,89.209,89.167,1.06057487]
[1772761283568,0.10938571,89.199,89.149,0.152329]
[1772761283765,0.10938571,89.189,89.149,1.21290387]
[1772761283967,0.10938571,89.189,89.151,11.21688272]
[1772761284171,39.2341494,89.208,89.152,1.06057487]
[1772761284172,0.10960502,89.198,89.152,1.06057487]
[1772761284370,0.10960502,89.189,89.152,1.06057487]
[1772761284882,0.28432314,89.189,89.149,0.152329]
[1772761285086,0.10960502,89.188,89.149,0.152329]
[1772761285269,0.10960502,89.188,89.149,11.36944739]
[1772761285684,0.10982822,89.186,89.149,0.152329]
[1772761285985,0.10982822,89.186,89.149,1.21290387]
[1772761287689,0.11027675,89.196,89.151,1.06057487]
[1772761288084,0.11049484,89.205,89.151,1.06057487]
[1772761288590,0.28432314,89.199,89.151,1.06057487]
[1772761288765,0.11070538,89.189,89.149,0.152329]
[1772761289075,0.11070538,89.189,89.149,11.36945219]
[1772761289479,0.11070538,89.189,89.149,12.44904803]
[1772761289862,11.32285037,89.189,89.15,1.08131914]
[1772761290192,0.11132615,89.188,89.15,1.08131914]
[1772761290586,0.11132615,89.187,89.149,0.152329]
[1772761290883,0.11132615,89.179,89.149,0.152329]
[1772761291271,30.0,89.185,89.149,1.23364814]
[1772761292079,11.21277359,89.184,89.149,12.45070207]
[1772761292282,30.0,89.183,89.149,12.45070207]
[1772761292481,30.11172889,89.183,89.149,12.45070207]
[1772761292885,0.11172889,89.182,89.149,0.152329]
[1772761293279,30.0,89.178,89.149,0.152329]
[1772761294292,11.21365374,89.177,89.149,0.152329]
[1772761294496,30.1121332,89.176,89.149,0.152329]
[1772761294694,30.0,89.176,89.149,0.152329]
[1772761296289,30.0,89.176,89.15,1.08131914]
[1772761296678,11.21390524,89.175,89.152,1.08131914]
[1772761298203,0.11289799,89.174,89.149,0.152329]
[1772761298395,0.11289799,89.169,89.149,1e-08]
[1772761298880,11.32755779,89.169,89.149,1e-08]
[1772761299489,30.0,89.167,89.149,1e-08]
[1772761299693,0.11308026,89.159,89.149,1e-08]
[1772761300501,30.0,89.157,89.149,1e-08]
[1772761300905,41.2162846,89.157,89.149,1e-08]
[1772761301201,30.0,89.157,89.149,1e-08]
[1772761301581,11.38936688,89.17,89.149,1e-08]
[1772761301582,0.11344116,89.185,89.15,1.08131914]
[1772761302502,0.11361683,89.179,89.149,1e-08]
[1772761303488,0.11379275,89.178,89.149,1e-08]
[1772761304582,11.2127904,89.184,89.149,1.08131915]
[1772761306002,11.21214499,89.189,89.151,1.08131914]
[1772761307319,11.2114522,89.195,89.151,1.08131914]
[1772761308597,0.28432314,89.196,89.153,1.08131914]
[1772761309190,11.21088801,89.199,89.153,1.08131914]
[1772761309709,0.11480711,89.197,89.153,1.08131914]
[1772761310217,0.11497066,89.189,89.153,1.08131914]
[1772761310597,0.11497066,89.189,89.149,1e-08]
[1772761310598,0.11497066,89.188,89.149,1e-08]
[1772761311004,0.11497066,89.188,89.149,11.21714747]
[1772761311217,0.11497066,89.188,89.15,1.08131914]
[1772761311513,39.24250747,89.189,89.15,1.08131914]
[1772761311716,0.11513187,89.193,89.15,1.08131914]
[1772761311921,11.21131294,89.196,89.15,1.08131914]
[1772761312708,0.11528505,89.199,89.152,1.08131914]
[1772761317598,0.11528505,89.199,89.154,1.08131914]
[1772761319202,11.20963131,89.209,89.154,1.08131914]
[1772761319415,11.20963131,89.209,89.157,1.08131914]
[1772761319613,28.01987465,89.223,89.159,1.08131914]
[1772761320199,11.20774679,89.224,89.162,1.06057487]
[1772761320801,0.11450909,89.242,89.162,0.28432314]
[1772761321018,0.11450909,89.242,89.164,1.06057487]
[1772761321214,0.11450909,89.242,89.166,1.06057487]
[1772761321410,0.11450909,89.242,89.167,1.06057487]
[1772761321605,0.11359517,89.239,89.172,1.06057487]
[1772761321807,0.11359517,89.238,89.172,1.06057487]
[1772761322206,39.21436814,89.253,89.172,1.06057487]
[1772761322207,0.11269784,89.219,89.172,1.06057487]
[1772761322415,0.11269784,89.218,89.172,1.06057487]
[1772761323122,0.1118148,89.229,89.172,1.06057487]
[1772761323325,0.1118148,89.228,89.172,1.06057487]
[1772761325323,0.1118148,89.228,89.149,1e-08]
[1772761325324,0.11007395,89.199,89.149,1e-08]
[1772761325522,0.11007395,89.189,89.15,11.21704991]
[1772761325706,0.11007395,89.189,89.151,1.06057487]
[1772761325903,0.11007395,89.198,89.151,1.06057487]
[1772761327324,0.10839452,89.188,89.149,1e-08]
[1772761327622,0.10839452,89.186,89.149,1e-08]
[1772761329426,0.10674243,89.179,89.149,1e-08]
[1772761330912,0.28432314,89.179,89.149,1e-08]
[1772761331127,11.21252214,89.186,89.149,1e-08]
[1772761332015,0.10433357,89.184,89.149,1e-08]
[1772761332418,0.10433357,89.183,89.149,1e-08]
[1772761333026,11.38319234,89.18,89.149,1e-08]
[1772761333257,0.1027828,89.179,89.149,1e-08]
[1772761333636,39.24470756,89.184,89.149,1e-08]
[1772761334036,11.21277359,89.184,89.149,1e-08]
[1772761334810,11.38319234,89.2,89.149,1e-08]
[1772761334811,11.21025962,89.204,89.149,1e-08]
[1772761335610,3.12134302,89.203,89.149,1e-08]
[1772761335815,8.64946059,89.204,89.149,1e-08]
[1772761336639,0.10051868,89.256,89.149,1e-08]
[1772761336831,0.10051868,89.256,89.162,0.14216157]
[1772761337010,0.10051868,89.256,89.172,1.10776407]
[1772761337217,0.10051868,89.256,89.173,1.39208721]
[1772761337531,0.10051868,89.256,89.176,1.10776407]
[1772761337729,0.10051868,89.256,89.177,1.39208721]
[1772761337935,0.10051868,89.256,89.179,1.10776407]
[1772761338239,0.14216157,89.257,89.179,1.10776407]
[1772761338536,28.00900563,89.258,89.179,1.10776407]
[1772761338732,0.09904477,89.265,89.183,3.69383402]
[1772761338917,0.09904477,89.265,89.184,0.28432314]
[1772761339117,0.09904477,89.265,89.187,1.10776407]
[1772761339339,0.09833012,89.259,89.188,1.10776407]
[1772761339512,0.09833012,89.258,89.188,1.10776407]
[1772761340534,0.0976158,89.248,89.188,1.10776407]
[1772761340927,0.0976158,89.246,89.19,1.10776407]
[1772761342130,11.20473287,89.248,89.19,1.10776407]
[1772761342324,0.09621597,89.269,89.193,1.10776407]
[1772761342522,0.09621597,89.258,89.193,1.10776407]
[1772761342918,0.09621597,89.256,89.195,1.10776407]
[1772761344246,0.09484665,89.248,89.195,1.10776407]
[1772761344736,39.21217144,89.258,89.195,1.10776407]
[1772761344737,0.09484665,89.238,89.195,1.10776407]
[1772761345114,0.09484665,89.238,89.181,28.03257591]
[1772761345115,11.30083513,89.238,89.197,1.10776407]
[1772761345318,0.09417611,89.236,89.197,1.10776407]
[1772761346834,0.09417611,89.236,89.153,45.98816135]
[1772761346835,0.09351491,89.228,89.186,1.10776407]
[1772761347039,0.09351491,89.228,89.187,12.32016049]
[1772761347224,0.28432314,89.227,89.19,1.10776407]
[1772761347541,11.20724436,89.228,89.19,1.10776407]
[1772761349027,0.09096137,89.227,89.19,1.10776407]
[1772761349344,0.09096137,89.227,89.192,1.06057487]
[1772761350549,0.08973779,89.219,89.184,1.06057487]
[1772761350850,0.08973779,89.219,89.179,11.213339]
[1772761351747,11.20837489,89.219,89.179,11.213339]
[1772761351930,11.20837489,89.219,89.142,44.87187828]
[1772761351931,0.08913316,89.209,89.157,28.04024011]
[1772761352138,0.08913316,89.209,89.159,1.06057487]
[1772761352644,11.36833219,89.21,89.159,1.06057487]
[1772761352848,0.08853738,89.208,89.159,1.06057487]
[1772761353931,0.28432314,89.207,89.161,1.06057487]
[1772761355048,11.20975697,89.208,89.161,1.06057487]
[1772761355260,0.08678951,89.199,89.15,11.21704991]
[1772761355434,0.08678951,89.199,89.151,1.06057487]
[1772761355632,0.28432314,89.207,89.151,1.06057487]
[1772761356033,11.29622694,89.206,89.153,1.06057487]
[1772761356230,0.08621865,89.205,89.153,1.06057487]
[1772761356430,39.23502902,89.206,89.153,1.06057487]
[1772761356431,0.08621865,89.198,89.153,1.06057487]
[1772761357856,0.28432314,89.199,89.153,1.06057487]
[1772761358050,0.08565494,89.205,89.155,1.06057487]
[1772761359434,0.08565494,89.205,89.161,1.06057487]
[1772761359634,39.23502902,89.206,89.161,1.06057487]
[1772761359834,11.21000829,89.206,89.161,1.06057487]
[1772761360443,28.02167516,89.217,89.163,1.06057487]
[1772761360833,0.08400352,89.216,89.163,1.06057487]
[1772761361035,0.08346973,89.199,89.16,0.5]
[1772761361634,0.28432314,89.209,89.162,1.06057487]
[1772761361835,0.08346973,89.208,89.162,1.06057487]
[1772761362454,0.08346973,89.208,89.163,11.21541446]
[1772761362641,0.08346973,89.208,89.164,1.06057487]
[1772761363554,11.20837489,89.219,89.164,1.06057487]
[1772761363753,0.08242412,89.218,89.164,1.06057487]
[1772761364643,0.08242412,89.218,89.166,1.06057487]
[1772761364856,0.0819208,89.209,89.166,1.06057487]
[1772761366457,0.08091228,89.198,89.16,1.56057487]
[1772761366757,0.08091228,89.196,89.153,1.06057487]
[1772761367136,0.08041966,89.189,89.153,1.06057487]
[1772761367559,0.08041966,89.188,89.13,1.06057487]
[1772761368338,0.07993227,89.179,89.144,11.21770619]
[1772761368837,0.36425541,89.178,89.145,1.06057487]
[1772761369050,11.36833219,89.17,89.138,1.06057487]
[1772761369337,11.36833219,89.17,89.142,12.27863145]
[1772761369536,0.07945321,89.177,89.142,12.27863145]
[1772761372762,0.07804977,89.176,89.142,12.27863145]
[1772761372944,11.36833219,89.17,89.142,12.27863145]
[1772761374457,0.07713654,89.169,89.13,1.06057487]
[1772761374639,39.32492464,89.177,89.144,1.06057487]
[1772761374835,39.32492464,89.177,89.146,1.06057487]
[1772761375860,0.07668952,89.176,89.146,1.06057487]
[1772761378643,39.2477881,89.177,89.148,1.06057487]
[1772761378644,11.21365374,89.177,89.148,1.06057487]
[1772761379345,11.28860886,89.177,89.148,1.06057487]
[1772761379648,0.07495512,89.176,89.148,1.06057487]
[1772761380381,1.07541209,89.159,89.105,11.22270847]
[1772761380546,1.07541209,89.139,89.102,11.22309263]
[1772761380869,1.07541209,89.129,89.101,2.51036708]
[1772761381046,0.28432314,89.159,89.102,11.22309263]
[1772761381251,1.07541209,89.158,89.102,11.22309263]
[1772761381561,11.36833219,89.16,89.104,1.07410354]
[1772761382359,11.36833219,89.16,89.102,39.28082421]
[1772761382360,39.2557117,89.159,89.112,1.07410354]
[1772761382748,11.36833219,89.15,89.112,1.07410354]
[1772761384161,0.05942747,89.139,89.11,0.5]
[1772761384355,11.27912027,89.129,89.101,2.51036708]
[1772761384547,0.05942747,89.128,89.101,2.51036708]
[1772761384746,11.36833219,89.12,89.101,0.64365578]
[1772761384966,39.26892481,89.129,89.078,1.09770461]
[1772761384967,11.36833219,89.11,89.078,1.09770461]
[1772761385170,11.36833219,89.12,89.08,1.09770461]
[1772761385669,11.36833219,89.11,89.074,1.09770461]
[1772761385863,39.26892481,89.129,89.074,0.87355461]
[1772761386271,11.2196928,89.129,89.074,0.87355461]
[1772761386457,11.21855998,89.138,89.075,39.29273083]
[1772761386654,104.0,89.159,89.075,39.29273083]
[1772761386655,11.21478557,89.168,89.078,3.69383402]
[1772761386870,11.21478557,89.168,89.079,0.28432314]
[1772761387455,11.21478557,89.168,89.08,0.5]
[1772761387655,0.22628274,89.167,89.08,0.5]
[1772761387863,0.22628274,89.167,89.081,1.35842668]
[1772761388072,11.21478557,89.168,89.084,4.82477569]
[1772761388279,11.21478557,89.168,89.092,1.07410354]
[1772761388472,11.21377949,89.176,89.095,1.07410354]
[1772761389364,39.24822822,89.176,89.095,1.07410354]
[1772761389759,39.4759896,89.176,89.095,1.07410354]
[1772761389960,0.22776138,89.175,89.095,1.07410354]
[1772761391577,0.22920915,89.173,89.1,1.07410354]
[1772761391878,0.22920915,89.172,89.1,1.07410354]
[1772761392575,0.22991786,89.159,89.1,1.07410354]
[1772761393468,11.21604342,89.158,89.102,1.07410354]
[1772761394250,39.25615199,89.158,89.102,1.07410354]
[1772761394472,0.23132113,89.157,89.102,1.07410354]
[1772761395063,11.21604342,89.158,89.102,1.07410354]
[1772761395880,0.23201253,89.168,89.104,1.07410354]
[1772761396965,0.23269366,89.159,89.104,1.07410354]
[1772761397473,28.03691725,89.169,89.104,1.07410354]
[1772761397676,28.03691725,89.169,89.106,1.07410354]
[1772761397880,11.21377949,89.176,89.108,1.07410354]
[1772761398378,0.23403723,89.175,89.108,1.07410354]
[1772761398762,0.23403723,89.169,89.109,1.07410354]
[1772761399585,0.23470171,89.168,89.112,1.07410354]
[1772761401190,0.28432314,89.166,89.114,1.07410354]
[1772761401681,0.23599659,89.177,89.114,1.07410354]
[1772761403370,0.23728637,89.174,89.116,1.07410354]
[1772761404791,0.23728637,89.174,89.118,1.07410354]